fUST/lending_fUST_20250404
["ID","MTS","AMOUNT","RATE_DAILY","PERIOD"]
[357106762,1743744639518,-500.0,0.00017995,2]
[357106763,1743744639529,-500.0,0.00017995,2]
[357106764,1743744639540,-500.0,0.00017995,2]
[357106765,1743744639554,-500.0,0.00017995,2]
[357106766,1743744639570,-500.0,0.00017995,2]
[357106767,1743744639580,-500.0,0.00017995,2]
[357106768,1743744639591,-500.0,0.00017995,2]
[357106769,1743744639600,-500.0,0.00017995,2]
[357106770,1743744639611,-500.0,0.00017995,2]
[357106771,1743744639621,-500.0,0.00017995,2]
[357106772,1743744639631,-500.0,0.00017995,2]
[357106773,1743744639641,-500.0,0.00017995,2]
[357106774,1743744639651,-500.0,0.00017995,2]
[357106775,1743744639661,-500.0,0.00017995,2]
[357106776,1743744639670,-500.0,0.00017995,2]
[357106777,1743744639680,-475.83529849,0.00017995,2]
[357106778,1743744639690,-500.0,0.00017995,2]
[357106779,1743744639700,-505.34826254,0.00017995,2]
[357106780,1743744639709,-500.0,0.00017995,2]
[357106781,1743744639719,-500.0,0.00017995,2]
[357106782,1743744639729,-500.0,0.00017995,2]
[357106783,1743744639740,-500.0,0.00017995,2]
[357106784,1743744639750,-500.0,0.00017995,2]
[357106785,1743744639760,-500.0,0.00017995,2]
[357106786,1743744639770,-500.0,0.00017995,2]
[357106787,1743744639780,-500.0,0.00017995,2]
[357106788,1743744639790,-500.0,0.00017995,2]
[357106789,1743744639800,-500.0,0.00017995,2]
[357106790,1743744639810,-500.0,0.00017995,2]
[357106791,1743744639819,-151.0,0.00017995,2]
[357106792,1743744639828,-519.55964058,0.00017995,2]
[357106793,1743744639840,-151.0,0.00017995,2]
[357106794,1743744639851,-500.0,0.00017995,2]
[357106795,1743744639860,-500.0,0.00017995,2]
[357106796,1743744639870,-513.41,0.00017995,2]
[357106797,1743744639879,-500.0,0.00017995,2]
[357106798,1743744639889,-500.0,0.00017995,2]
[357106799,1743744639898,-500.0,0.00017995,2]
[357106800,1743744639907,-500.0,0.00017995,2]
[357106801,1743744639917,-558.2073534,0.00017995,2]
[357106802,1743744639926,-500.0,0.00017995,2]
[357106803,1743744639936,-500.0,0.00017995,2]
[357106804,1743744639945,-500.0,0.00017995,2]
[357106805,1743744639955,-500.0,0.00017995,2]
[357106806,1743744639965,-550.63984097,0.00017995,2]
[357106807,1743744639975,-500.0,0.00017995,2]
[357106808,1743744639985,-500.0,0.00017995,2]
[357106809,1743744639995,-500.0,0.00017995,2]
[357106810,1743744640005,-500.0,0.00017995,2]
[357106811,1743744640016,-500.0,0.00017995,2]
[357106812,1743744640027,-500.0,0.00017995,2]
[357106813,1743744640037,-500.0,0.00017995,2]
[357106814,1743744640046,-500.0,0.00017995,2]
[357106815,1743744640055,-151.0,0.00017995,2]
[357106816,1743744640065,-227.301156,0.00017995,2]
[357106817,1743744640076,-500.0,0.00017995,2]
[357106818,1743744640086,-151.0,0.00017995,2]
[357106819,1743744640096,-500.0,0.00017995,2]
[357106820,1743744640106,-500.0,0.00017995,2]
[357106821,1743744640115,-500.0,0.00017995,2]
[357106822,1743744640125,-391.595472,0.00017995,2]
[357106823,1743744640135,-391.595472,0.00017995,2]
[357106824,1743744640144,-500.0,0.00017995,2]
[357106825,1743744640153,-235.28014732,0.00017995,2]
[357106826,1743744640163,-500.0,0.00017995,2]
[357106827,1743744640173,-500.0,0.00017995,2]
[357106828,1743744640183,-500.0,0.00017995,2]
[357106829,1743744640193,-500.0,0.00017995,2]
[357106830,1743744640203,-508.04056105,0.00017995,2]
[357106831,1743744640212,-503.23438222,0.00017995,2]
[357106832,1743744640221,-503.99988674,0.00017995,2]
[357106833,1743744640231,-4111.80983083,0.00017996,2]
[357106834,1743744640240,-500.0,0.00017996,2]
[357106835,1743744640249,-1000.0,0.00017996,2]
[357106836,1743744640259,-500.0,0.00017996,2]
[357106837,1743744640270,-500.0,0.00017996,2]
[357106838,1743744640279,-500.0,0.00017996,2]
[357106839,1743744640289,-500.0,0.00017996,2]
[357106840,1743744640298,-501.73842604,0.00017996,2]
[357106841,1743744640308,-500.0,0.00017996,2]
[357106842,1743744640317,-624.03712809,0.00017996,2]
[357106843,1743744640327,-500.0,0.00017996,2]
[357106844,1743744640337,-500.0,0.00017996,2]
[357106845,1743744640347,-500.0,0.00017996,2]
[357106846,1743744640358,-500.0,0.00017996,2]
[357106847,1743744640367,-573.97304337,0.00017996,2]
[357106848,1743744640377,-500.0,0.00017996,2]
[357106849,1743744640387,-500.0,0.00017996,2]
[357106850,1743744640396,-477.40102019,0.00017996,2]
[357106851,1743744640406,-595.5513468,0.00017996,2]
[357106852,1743744640416,-500.0,0.00017996,2]
[357106853,1743744640426,-501.17254304,0.00017996,2]
[357106854,1743744640436,-501.5230729,0.00017996,2]
[357106855,1743744640446,-500.0,0.00017996,2]
[357106856,1743744640456,-500.0,0.00017996,2]
[357106857,1743744640466,-556.23,0.00017996,2]
[357106858,1743744640475,-500.0,0.00017996,2]
[357106859,1743744640484,-500.0,0.00017996,2]
[357106860,1743744640494,-500.0,0.00017996,2]
[357106861,1743744640503,-500.0,0.00017996,2]
[357106862,1743744640514,-500.0,0.00017996,2]
[357106863,1743744640523,-500.0,0.00017996,2]
[357106865,1743744640533,-500.0,0.00017996,2]
[357106866,1743744640543,-500.0,0.00017996,2]
[357106867,1743744640557,-500.0,0.00017996,2]
[357106868,1743744640567,-500.0,0.00017996,2]
[357106869,1743744640576,-500.0,0.00017996,2]
[357106871,1743744640586,-500.0,0.00017996,2]
[357106872,1743744640597,-200.0,0.00017996,2]
[357106873,1743744640611,-500.0,0.00017996,2]
[357106874,1743744640621,-500.0,0.00017996,2]
[357106875,1743744640631,-500.0,0.00017996,2]
[357106876,1743744640642,-500.0,0.00017996,2]
[357106878,1743744640652,-500.0,0.00017996,2]
[357106880,1743744640661,-501.29130657,0.00017996,2]
[357106881,1743744640671,-500.0,0.00017996,2]
[357106882,1743744640681,-500.0,0.00017996,2]
[357106883,1743744640690,-535.83374456,0.00017996,2]
[357106884,1743744640700,-597.67,0.00017996,2]
[357106885,1743744640709,-500.0,0.00017996,2]
[357106886,1743744640718,-500.0,0.00017996,2]
[357106887,1743744640728,-500.0,0.00017996,2]
[357106888,1743744640738,-500.0,0.00017996,2]
[357106889,1743744640751,-502.10074454,0.00017996,2]
[357106890,1743744640763,-500.0,0.00017996,2]
[357106891,1743744640773,-500.0,0.00017996,2]
[357106892,1743744640783,-500.0,0.00017996,2]
[357106893,1743744640793,-500.0,0.00017996,2]
[357106894,1743744640803,-500.0,0.00017996,2]
[357106895,1743744640812,-500.0,0.00017996,2]
[357106897,1743744640822,-500.0,0.00017996,2]
[357106899,1743744640831,-500.0,0.00017996,2]
[357106900,1743744640842,-500.0,0.00017996,2]
[357106902,1743744640857,-500.0,0.00017996,2]
[357106904,1743744640867,-500.0,0.00017996,2]
[357106905,1743744640877,-500.0,0.00017996,2]
[357106906,1743744640886,-500.0,0.00017996,2]
[357106907,1743744640896,-500.0,0.00017996,2]
[357106908,1743744640906,-500.0,0.00017996,2]
[357106909,1743744640915,-500.0,0.00017996,2]
[357106910,1743744640925,-500.0,0.00017996,2]
[357106911,1743744640935,-500.0,0.00017996,2]
[357106912,1743744640944,-500.0,0.00017996,2]
[357106913,1743744640954,-505.15837974,0.00017996,2]
[357106914,1743744640964,-500.0,0.00017996,2]
[357106915,1743744640974,-500.0,0.00017996,2]
[357106916,1743744640984,-500.0,0.00017996,2]
[357106917,1743744640995,-500.0,0.00017996,2]
[357106918,1743744641004,-25.93522856,0.00017996,2]
[357106921,1743744641236,-191.47914451,0.00017996,2]
[357106922,1743744641246,-500.0,0.00017996,2]
[357106923,1743744641256,-548.25448655,0.00017996,2]
[357106924,1743744641266,-500.0,0.00017996,2]
[357106925,1743744641277,-500.0,0.00017996,2]
[357106926,1743744641286,-500.0,0.00017996,2]
[357106927,1743744641296,-500.0,0.00017996,2]
[357106928,1743744641306,-500.0,0.00017996,2]
[357106929,1743744641316,-500.0,0.00017996,2]
[357106930,1743744641326,-223.17326468,0.00017996,2]
[357106931,1743744641434,-500.0,0.0001797,2]
[357106932,1743744641445,-276.82673532,0.00017996,2]
[357106933,1743744641455,-500.0,0.00017996,2]
[357106934,1743744641464,-500.0,0.00017996,2]
[357106935,1743744641474,-500.0,0.00017996,2]
[357106936,1743744641484,-500.0,0.00017996,2]
[357106937,1743744641494,-500.0,0.00017996,2]
[357106938,1743744641503,-500.0,0.00017996,2]
[357106939,1743744641512,-500.0,0.00017996,2]
[357106940,1743744641522,-500.0,0.00017996,2]
[357106941,1743744641531,-500.0,0.00017996,2]
[357106942,1743744641541,-535.10964681,0.00017996,2]
[357106943,1743744641553,-500.0,0.00017996,2]
[357106944,1743744641564,-500.0,0.00017996,2]
[357106945,1743744641574,-500.0,0.00017996,2]
[357106946,1743744641583,-500.0,0.00017996,2]
[357106947,1743744641594,-248.37417256,0.00017996,2]
[357106948,1743744641604,-500.0,0.00017996,2]
[357106949,1743744641614,-500.0,0.00017996,2]
[357106950,1743744641624,-500.0,0.00017996,2]
[357106951,1743744641635,-500.0,0.00017996,2]
[357106952,1743744641645,-500.0,0.00017996,2]
[357106953,1743744641654,-500.0,0.00017996,2]
[357106954,1743744641664,-500.0,0.00017996,2]
[357106955,1743744641674,-501.93312062,0.00017996,2]
[357106956,1743744641683,-500.0,0.00017996,2]
[357106957,1743744641692,-592.60718441,0.00017996,2]
[357106958,1743744641702,-500.0,0.00017996,2]
[357106959,1743744641711,-500.0,0.00017996,2]
[357106960,1743744641720,-500.0,0.00017996,2]
[357106961,1743744641730,-500.0,0.00017996,2]
[357106962,1743744641740,-500.0,0.00017996,2]
[357106963,1743744641749,-504.91098007,0.00017996,2]
[357106964,1743744641759,-500.0,0.00017996,2]
[357106965,1743744641768,-500.0,0.00017996,2]
[357106966,1743744641777,-500.0,0.00017996,2]
[357106967,1743744641787,-500.0,0.00017996,2]
[357106968,1743744641796,-536.70856606,0.00017996,2]
[357106969,1743744641806,-500.0,0.00017996,2]
[357106970,1743744641815,-508.61754546,0.00017996,2]
[357106971,1743744641825,-500.0,0.00017996,2]
[357106972,1743744641834,-505.10651269,0.00017996,2]
[357106973,1743744641844,-500.0,0.00017996,2]
[357106974,1743744641854,-500.0,0.00017996,2]
[357106975,1743744641865,-500.0,0.00017996,2]
[357106976,1743744641876,-500.0,0.00017996,2]
[357106977,1743744641885,-500.0,0.00017996,2]
[357106978,1743744641894,-500.0,0.00017996,2]
[357106979,1743744641903,-500.0,0.00017996,2]
[357106980,1743744641912,-500.0,0.00017996,2]
[357106981,1743744641922,-500.0,0.00017996,2]
[357106982,1743744641931,-500.0,0.00017996,2]
[357106983,1743744641941,-500.0,0.00017996,2]
[357106984,1743744641951,-173.76020167,0.00017996,2]
[357106985,1743744641960,-502.97858351,0.00017996,2]
[357106986,1743744641969,-510.26437902,0.00017996,2]
[357106987,1743744641979,-506.21911723,0.00017996,2]
[357106988,1743744641988,-500.0,0.00017996,2]
[357106989,1743744641998,-500.0,0.00017996,2]
[357106990,1743744642007,-507.31175644,0.00017996,2]
[357106991,1743744642017,-247.17764994,0.00017996,2]
[357106992,1743744642028,-500.0,0.00017996,2]
[357106993,1743744642038,-503.27697886,0.00017996,2]
[357106994,1743744642048,-505.67084821,0.00017996,2]
[357106995,1743744642057,-500.0,0.00017996,2]
[357106996,1743744642067,-500.0,0.00017996,2]
[357106997,1743744642077,-500.0,0.00017996,2]
[357106998,1743744642087,-500.0,0.00017996,2]
[357106999,1743744642096,-500.0,0.00017996,2]
[357107000,1743744642112,-505.64258227,0.00017996,2]
[357107001,1743744642122,-500.0,0.00017996,2]
[357107002,1743744642132,-500.0,0.00017996,2]
[357107003,1743744642142,-500.0,0.00017996,2]
[357107004,1743744642154,-500.0,0.00017996,2]
[357107005,1743744642171,-534.7026844,0.00017996,2]
[357107006,1743744642185,-500.0,0.00017996,2]
[357107007,1743744642196,-500.0,0.00017996,2]
[357107008,1743744642204,-500.0,0.00017996,2]
[357107009,1743744642214,-511.72889749,0.00017996,2]
[357107010,1743744642225,-500.0,0.00017996,2]
[357107011,1743744642235,-500.0,0.00017996,2]
[357107012,1743744642246,-500.0,0.00017996,2]
[357107013,1743744642256,-500.0,0.00017996,2]
[357107014,1743744642268,-500.0,0.00017996,2]
[357107015,1743744642283,-500.0,0.00017996,2]
[357107016,1743744642299,-500.0,0.00017996,2]
[357107017,1743744642311,-500.0,0.00017996,2]
[357107018,1743744642322,-502.60644867,0.00017996,2]
[357107019,1743744642333,-500.0,0.00017996,2]
[357107020,1743744642347,-500.0,0.00017996,2]
[357107021,1743744642360,-500.0,0.00017996,2]
[357107022,1743744642372,-500.0,0.00017996,2]
[357107023,1743744642385,-500.0,0.00017996,2]
[357107024,1743744642397,-264.08742079,0.00017996,2]
[357107025,1743744642410,-183.19048618,0.00017996,2]
[357107026,1743744642424,-501.89070575,0.00017996,2]
[357107027,1743744642436,-500.0,0.00017996,2]
[357107028,1743744642448,-500.0,0.00017996,2]
[357107029,1743744642459,-500.0,0.00017996,2]
[357107030,1743744642470,-514.63639209,0.00017996,2]
[357107031,1743744642481,-516.59437895,0.00017996,2]
[357107032,1743744642492,-500.0,0.00017996,2]
[357107033,1743744642518,-500.0,0.00017996,2]
[357107034,1743744642534,-500.0,0.00017996,2]
[357107035,1743744642551,-540.11623778,0.00017996,2]
[357107036,1743744642566,-500.0,0.00017996,2]
[357107037,1743744642580,-500.0,0.00017996,2]
[357107038,1743744642595,-583.13838451,0.00017996,2]
[357107039,1743744642609,-500.0,0.00017996,2]
[357107040,1743744642623,-500.0,0.00017996,2]
[357107041,1743744642639,-565.7857778,0.00017996,2]
[357107042,1743744642651,-502.96984523,0.00017996,2]
[357107043,1743744642663,-631.11370864,0.00017996,2]
[357107044,1743744642679,-500.0,0.00017996,2]
[357107045,1743744642692,-500.0,0.00017996,2]
[357107046,1743744642705,-502.01708385,0.00017996,2]
[357107047,1743744642718,-500.0,0.00017996,2]
[357107048,1743744642730,-500.0,0.00017996,2]
[357107049,1743744642743,-252.90511183,0.00017996,2]
[357107050,1743744642755,-500.0,0.00017996,2]
[357107051,1743744642768,-500.0,0.00017996,2]
[357107052,1743744642781,-500.0,0.00017996,2]
[357107053,1743744642794,-500.0,0.00017996,2]
[357107054,1743744642807,-500.0,0.00017996,2]
[357107055,1743744642823,-506.68479477,0.00017996,2]
[357107056,1743744642836,-540.50894998,0.00017996,2]
[357107057,1743744642849,-500.0,0.00017996,2]
[357107058,1743744642861,-609.69227135,0.00017996,2]
[357107059,1743744642871,-231.6420877,0.00017996,2]
[357107060,1743744642882,-500.0,0.00017996,2]
[357107061,1743744642893,-500.0,0.00017996,2]
[357107062,1743744642905,-500.0,0.00017996,2]
[357107063,1743744642919,-500.0,0.00017996,2]
[357107064,1743744642932,-500.0,0.00017996,2]
[357107065,1743744642943,-500.0,0.00017996,2]
[357107066,1743744642953,-500.0,0.00017996,2]
[357107067,1743744642963,-500.0,0.00017996,2]
[357107068,1743744642974,-500.0,0.00017996,2]
[357107069,1743744642985,-1000.0,0.00017996,2]
[357107070,1743744642997,-500.0,0.00017996,2]
[357107071,1743744643010,-500.0,0.00017996,2]
[357107072,1743744643021,-500.0,0.00017996,2]
[357107073,1743744643032,-500.0,0.00017996,2]
[357107074,1743744643043,-502.94051107,0.00017996,2]
[357107075,1743744643054,-510.37162391,0.00017996,2]
[357107076,1743744643065,-500.0,0.00017996,2]
[357107077,1743744643076,-514.889383,0.00017996,2]
[357107078,1743744643088,-500.0,0.00017996,2]
[357107079,1743744643100,-514.77968771,0.00017996,2]
[357107080,1743744643114,-500.0,0.00017996,2]
[357107081,1743744643126,-500.0,0.00017996,2]
[357107082,1743744643140,-500.0,0.00017996,2]
[357107083,1743744643152,-510.97852026,0.00017996,2]
[357107084,1743744643164,-500.0,0.00017996,2]
[357107085,1743744643176,-500.0,0.00017996,2]
[357107087,1743744643188,-406.9612752,0.00017996,2]
[357107089,1743744643200,-500.0,0.00017996,2]
[357107091,1743744643212,-504.36083608,0.00017996,2]
[357107093,1743744643224,-507.03401067,0.00017996,2]
[357107094,1743744643236,-512.60324899,0.00017996,2]
[357107095,1743744643248,-500.0,0.00017996,2]
[357107096,1743744643259,-151.0,0.00017996,2]
[357107097,1743744643270,-500.0,0.00017996,2]
[357107098,1743744643281,-151.0,0.00017996,2]
[357107100,1743744643292,-151.0,0.00017996,2]
[357107102,1743744643303,-151.0,0.00017996,2]
[357107103,1743744643314,-514.67303933,0.00017996,2]
[357107104,1743744643326,-188.70133281,0.00017996,2]
[357107105,1743744643337,-500.0,0.00017996,2]
[357107106,1743744643349,-500.0,0.00017996,2]
[357107107,1743744643362,-316.67687506,0.00017996,2]
[357107131,1743744646892,-500.0,0.0001779,2]
[357107132,1743744646904,-737.77015531,0.000179,2]
[357107133,1743744646916,-500.0,0.00017971,2]
[357107134,1743744646928,-503.7625955,0.00017971,2]
[357107135,1743744646940,-583.52397346,0.00017995,2]
[357107136,1743744646951,-183.32312494,0.00017996,2]
[357107137,1743744646964,-500.0,0.00017996,2]
[357107138,1743744646975,-500.0,0.00017996,2]
[357107139,1743744646987,-503.2520931,0.00017996,2]
[357107140,1743744646998,-522.58272743,0.00017996,2]
[357107141,1743744647008,-513.21416026,0.00017996,2]
[357107142,1743744647018,-500.0,0.00017996,2]
[357107143,1743744647028,-500.0,0.00017996,2]
[357107144,1743744647038,-500.0,0.00017996,2]
[357107145,1743744647048,-365.89561107,0.00017996,2]
[357107146,1743744647058,-500.0,0.00017996,2]
[357107147,1743744647068,-179.60717567,0.00017996,2]
[357107148,1743744647078,-500.0,0.00017996,2]
[357107149,1743744647087,-500.0,0.00017996,2]
[357107150,1743744647097,-500.0,0.00017996,2]
[357107151,1743744647276,-503.4521907,0.00017996,2]
[357107152,1743744647291,-502.61747102,0.00017996,2]
[357107153,1743744647302,-500.0,0.00017996,2]
[357107154,1743744647311,-500.0,0.00017996,2]
[357107155,1743744647321,-515.60501772,0.00017996,2]
[357107156,1743744647331,-500.0,0.00017996,2]
[357107157,1743744647341,-500.0,0.00017996,2]
[357107158,1743744647350,-501.54895805,0.00017996,2]
[357107159,1743744647360,-500.0,0.00017996,2]
[357107160,1743744647370,-500.0,0.00017996,2]
[357107161,1743744647380,-466.32648231,0.00017996,2]
[357107162,1743744647390,-500.79011062,0.00017996,2]
[357107163,1743744647400,-500.0,0.00017996,2]
[357107164,1743744647410,-644.90196098,0.00017996,2]
[357107165,1743744647419,-500.0,0.00017996,2]
[357107166,1743744647430,-500.0,0.00017996,2]
[357107167,1743744647439,-500.0,0.00017996,2]
[357107168,1743744647449,-500.0,0.00017996,2]
[357107169,1743744647458,-269.21731695,0.00017996,2]
[357107170,1743744647468,-510.05864478,0.00017996,2]
[357107171,1743744647479,-500.0,0.00017996,2]
[357107172,1743744647488,-533.78199725,0.00017996,2]
[357107173,1743744647498,-500.0,0.00017996,2]
[357107174,1743744647508,-513.67613007,0.00017996,2]
[357107175,1743744647518,-500.0,0.00017996,2]
[357107176,1743744647527,-500.0,0.00017996,2]
[357107177,1743744647536,-559.14286099,0.00017996,2]
[357107178,1743744647546,-503.4853534,0.00017996,2]
[357107179,1743744647559,-151.0,0.00017996,2]
[357107180,1743744647568,-151.0,0.00017996,2]
[357107181,1743744647578,-151.0,0.00017996,2]
[357107182,1743744647590,-151.0,0.00017996,2]
[357107183,1743744647599,-511.74796928,0.00017996,2]
[357107184,1743744647610,-151.0,0.00017996,2]
[357107185,1743744647619,-151.0,0.00017996,2]
[357107186,1743744647628,-151.0,0.00017996,2]
[357107187,1743744647637,-500.0,0.00017996,2]
[357107188,1743744647647,-151.0,0.00017996,2]
[357107189,1743744647657,-500.0,0.00017996,2]
[357107190,1743744647667,-500.0,0.00017996,2]
[357107191,1743744647677,-500.0,0.00017996,2]
[357107192,1743744647687,-514.95995305,0.00017996,2]
[357107193,1743744647696,-500.0,0.00017996,2]
[357107194,1743744647705,-500.0,0.00017996,2]
[357107195,1743744647716,-500.0,0.00017996,2]
[357107196,1743744647726,-500.0,0.00017996,2]
[357107197,1743744647737,-518.84708629,0.00017996,2]
[357107198,1743744647746,-500.0,0.00017996,2]
[357107199,1743744647756,-249.61222214,0.00017996,2]
[357107200,1743744647767,-471.09651504,0.00017996,2]
[357107201,1743744647777,-527.81019198,0.00017996,2]
[357107202,1743744647787,-527.15210474,0.00017996,2]
[357107203,1743744647797,-523.00192108,0.00017996,2]
[357107204,1743744647807,-508.76295087,0.00017996,2]
[357107205,1743744647817,-500.0,0.00017996,2]
[357107206,1743744647826,-500.0,0.00017996,2]
[357107207,1743744647836,-500.0,0.00017996,2]
[357107208,1743744647846,-511.50933327,0.00017996,2]
[357107209,1743744647855,-500.0,0.00017996,2]
[357107210,1743744647865,-507.57550573,0.00017996,2]
[357107211,1743744647875,-500.0,0.00017996,2]
[357107212,1743744647884,-506.91321124,0.00017996,2]
[357107213,1743744647894,-151.0,0.00017996,2]
[357107214,1743744647904,-151.0,0.00017996,2]
[357107215,1743744647913,-151.0,0.00017996,2]
[357107216,1743744647923,-151.0,0.00017996,2]
[357107217,1743744647933,-151.0,0.00017996,2]
[357107218,1743744647942,-151.0,0.00017996,2]
[357107219,1743744647951,-151.0,0.00017996,2]
[357107220,1743744647960,-500.0,0.00017996,2]
[357107221,1743744647970,-151.0,0.00017996,2]
[357107222,1743744647979,-500.0,0.00017996,2]
[357107223,1743744647989,-500.0,0.00017996,2]
[357107224,1743744647999,-500.0,0.00017996,2]
[357107225,1743744648009,-500.0,0.00017996,2]
[357107226,1743744648019,-500.0,0.00017996,2]
[357107227,1743744648029,-500.0,0.00017996,2]
[357107228,1743744648038,-391.595472,0.00017996,2]
[357107229,1743744648048,-391.595472,0.00017996,2]
[357107230,1743744648058,-391.595472,0.00017996,2]
[357107231,1743744648068,-391.595472,0.00017996,2]
[357107232,1743744648078,-391.595472,0.00017996,2]
[357107233,1743744648088,-391.595472,0.00017996,2]
[357107234,1743744648098,-391.595472,0.00017996,2]
[357107235,1743744648107,-391.595472,0.00017996,2]
[357107236,1743744648116,-391.595472,0.00017996,2]
[357107237,1743744648125,-500.0,0.00017996,2]
[357107238,1743744648135,-391.595472,0.00017996,2]
[357107239,1743744648145,-500.0,0.00017996,2]
[357107240,1743744648155,-557.03481278,0.00017996,2]
[357107241,1743744648165,-510.51412564,0.00017997,2]
[357107242,1743744648175,-154.93147,0.00017997,2]
[357107243,1743744648185,-154.93147,0.00017997,2]
[357107244,1743744648195,-266.90451881,0.00017997,2]
[357107245,1743744648205,-500.0,0.00017997,2]
[357107246,1743744648216,-151.0,0.00017997,2]
[357107247,1743744648228,-151.0,0.00017997,2]
[357107248,1743744648238,-151.0,0.00017997,2]
[357107249,1743744648248,-151.0,0.00017997,2]
[357107250,1743744648258,-151.0,0.00017997,2]
[357107251,1743744648267,-154.93147,0.00017998,2]
[357107252,1743744648278,-154.93147,0.00017998,2]
[357107253,1743744648288,-391.595472,0.00017998,2]
[357107254,1743744648298,-391.595472,0.00017998,2]
[357107255,1743744648308,-259.78696446,0.00018032,2]
[357107256,1743744648318,-204.5211149,0.000181,2]
[357107257,1743744648328,-259.78696446,0.00018101,2]
[357107258,1743744648338,-259.78696446,0.00018169,2]
[357107259,1743744648348,-154.93147,0.00018172,2]
[357107260,1743744648358,-154.93147,0.00018172,2]
[357107261,1743744648367,-151.0,0.00018172,2]
[357107262,1743744648376,-151.0,0.00018172,2]
[357107263,1743744648386,-151.0,0.00018172,2]
[357107264,1743744648395,-151.0,0.00018172,2]
[357107265,1743744648406,-273.600987,0.00018172,2]
[357107266,1743744648415,-391.595472,0.00018172,2]
[357107267,1743744648424,-391.595472,0.00018172,2]
[357107268,1743744648434,-37029.51448605,0.00018172,2]
[357107284,1743745541258,300.36,0.00025,30]
[357107286,1743745748143,-185.010945,0.00013562,2]
[357107287,1743745748164,-10.08145436,0.00013699,2]
[357107288,1743745754309,818.47109062,0.00015,3]
[357107317,1743745831882,-174.92949064,0.00013699,2]
[357107318,1743745831893,-154.8754927,0.00016868,2]
[357107319,1743745831996,-23378.8990852,0.00016868,2]
[357107320,1743745832008,-929.47167635,0.00017769,2]
[357107321,1743745832018,-296.9532732,0.00017773,2]
[357107322,1743745832028,-235.0,0.00017867,2]
[357107323,1743745832038,-500.0,0.00017868,2]
[357107324,1743745832048,-4751.13,0.00017868,2]
[357107325,1743745832058,-500.0,0.00017868,2]
[357107326,1743745832067,-500.0,0.00017868,2]
[357107327,1743745832077,-500.0,0.00017868,2]
[357107328,1743745832086,-508.08591188,0.00017868,2]
[357107330,1743745832097,-500.0,0.00017868,2]
[357107333,1743745832106,-506.8820944,0.00017868,2]
[357107335,1743745832115,-500.0,0.00017868,2]
[357107337,1743745832125,-542.67735251,0.00017868,2]
[357107339,1743745832134,-1621.24,0.00017868,2]
[357107341,1743745832144,-500.0,0.00017868,2]
[357107343,1743745832153,-500.0,0.00017868,2]
[357107345,1743745832163,-500.0,0.00017868,2]
[357107347,1743745832173,-500.0,0.00017868,2]
[357107349,1743745832182,-500.0,0.00017868,2]
[357107351,1743745832191,-500.0,0.00017868,2]
[357107353,1743745832201,-500.0,0.00017868,2]
[357107355,1743745832210,-500.0,0.00017868,2]
[357107357,1743745832220,-500.0,0.00017868,2]
[357107359,1743745832230,-500.0,0.00017868,2]
[357107361,1743745832240,-500.0,0.00017868,2]